bitfinex-derivatives/quotes_BTCF0:USTF0_20241226
["timestamp","ask_amount","ask_price","bid_price","bid_amount"]
[1735238717197,0.001,95617.0,95616.0,0.0489]
[1735238717399,0.001,95617.0,95616.0,0.101242]
[1735238718899,0.01649728,95617.0,95616.0,0.101242]
[1735238719105,0.052339,95622.0,95616.0,0.101242]
[1735238719898,0.052339,95621.0,95616.0,0.101242]
[1735238720206,0.05234,95619.0,95616.0,0.0489]
[1735238720503,0.12848978,95640.0,95616.0,0.0489]
[1735238720704,0.052339,95621.0,95616.0,0.0489]
[1735238721105,0.14406919,95640.0,95616.0,0.0489]
[1735238721307,0.052341,95617.0,95616.0,0.0489]
[1735238721706,0.052347,95606.0,95605.0,0.052]
[1735238723109,0.052347,95606.0,95605.0,0.1058]
[1735238724202,0.052344,95612.0,95605.0,0.1058]
[1735238724404,0.052344,95612.0,95605.0,0.158147]
[1735238724700,0.052345,95610.0,95605.0,0.158147]
[1735238725098,0.052335,95628.0,95605.0,0.1058]
[1735238725298,0.052347,95606.0,95605.0,0.1058]
[1735238725508,0.052344,95612.0,95605.0,0.1048]
[1735238725709,0.052335,95629.0,95605.0,0.1058]
[1735238725913,0.01554747,95630.0,95619.0,0.07616078]
[1735238726107,0.052327,95644.0,95624.0,0.052337]
[1735238726306,0.05233,95637.0,95632.0,0.052333]
[1735238726507,0.052333,95632.0,95625.0,0.1489]
[1735238726917,0.052333,95632.0,95627.0,0.052336]
[1735238727216,0.05233,95637.0,95627.0,0.052336]
[1735238727606,0.052331,95636.0,95627.0,0.052336]
[1735238727807,0.052331,95635.0,95627.0,0.052336]
[1735238728111,0.06779492,95648.0,95628.0,0.052335]
[1735238728303,0.052332,95634.0,95628.0,0.052335]
[1735238728913,0.002,95632.0,95628.0,0.052335]
[1735238729111,0.0067511,95631.0,95628.0,0.052335]
[1735238729514,0.002,95632.0,95628.0,0.052335]
[1735238729515,0.0067511,95630.0,95628.0,0.061335]
[1735238729718,0.0067511,95629.0,95628.0,0.070335]
[1735238730113,0.0067513,95629.0,95628.0,0.061335]
[1735238731615,0.0067513,95629.0,95628.0,0.052335]
[1735238732214,0.02212234,95629.0,95628.0,0.052335]
[1735238732410,0.0067513,95629.0,95628.0,0.052335]
[1735238732607,0.0087513,95629.0,95628.0,0.052335]
[1735238733007,0.002,95629.0,95628.0,0.052335]
[1735238733202,0.0087486,95629.0,95628.0,0.052335]
[1735238734313,0.0087486,95629.0,95625.0,0.1489]
[1735238734619,0.00674843,95628.0,95625.0,0.1489]
[1735238734815,0.00674843,95627.0,95625.0,0.1489]
[1735238735115,0.00674843,95626.0,95625.0,0.201237]
[1735238735810,0.00115301,95629.0,95625.0,0.1489]
[1735238736117,0.00115301,95629.0,95628.0,0.052335]
[1735238736315,0.052333,95633.0,95628.0,0.052335]
[1735238737016,0.002,95629.0,95628.0,0.052335]
[1735238737210,0.002,95629.0,95625.0,0.201237]
[1735238737621,0.002,95629.0,95626.0,0.052336]
[1735238738011,0.002,95629.0,95627.0,0.052335]
[1735238738518,0.053332,95633.0,95627.0,0.052335]
[1735238739017,0.001,95629.0,95627.0,0.052335]
[1735238739920,0.001,95629.0,95628.0,0.052335]
[1735238741418,0.0523,95694.0,95643.0,0.052326]
[1735238741719,0.052304,95685.0,95654.0,0.07616078]
[1735238741921,0.052304,95685.0,95658.0,0.052319]
[1735238741922,0.12846778,95680.0,95658.0,0.052319]
[1735238742216,0.358254,95664.0,95659.0,0.052318]
[1735238742421,0.358254,95664.0,95660.0,0.052317]
[1735238742607,0.01548351,95664.0,95660.0,0.052317]
[1735238742810,0.052314,95666.0,95660.0,0.052317]
[1735238743115,0.052304,95685.0,95660.0,0.052317]
[1735238743310,0.001,95664.0,95660.0,0.052317]
[1735238744320,0.001,95664.0,95663.0,0.052316]
[1735238745518,0.052309,95675.0,95666.0,0.052314]
[1735238745719,0.052309,95675.0,95667.0,0.0601]
[1735238745927,0.07616078,95680.0,95667.0,0.0601]
[1735238746124,0.052319,95657.0,95656.0,0.0603]
[1735238746628,0.15232156,95670.0,95643.0,0.0008]
[1735238746920,0.15232156,95670.0,95641.0,0.0657]
[1735238746921,0.052327,95643.0,95641.0,0.0657]
[1735238747327,0.052327,95642.0,95640.0,0.00156824]
[1735238747922,0.052328,95641.0,95640.0,0.00156824]
[1735238748927,0.052328,95641.0,95640.0,0.00356824]
[1735238749922,0.0149146,95641.0,95640.0,0.05589724]
[1735238750116,0.07616078,95670.0,95642.0,0.052327]
[1735238750323,0.07616078,95680.0,95650.0,0.07616078]
[1735238750535,0.052319,95658.0,95651.0,0.118]
[1735238750828,0.052313,95669.0,95651.0,0.118]
[1735238751030,0.07616078,95670.0,95651.0,0.118]
[1735238751231,0.05232,95655.0,95651.0,0.118]
[1735238751823,0.07616078,95670.0,95651.0,0.118]
[1735238752027,0.052318,95661.0,95651.0,0.118]
[1735238752236,0.052318,95661.0,95651.0,0.127]
[1735238753232,0.07616078,95680.0,95651.0,0.127]
[1735238753434,0.052313,95669.0,95658.0,0.052319]
[1735238753633,0.052313,95669.0,95657.0,0.052319]
[1735238753930,0.07616078,95680.0,95657.0,0.052319]
[1735238753931,0.052314,95667.0,95657.0,0.052319]
[1735238754135,0.052314,95666.0,95657.0,0.052319]
[1735238754823,0.052308,95678.0,95661.0,0.052317]
[1735238755019,0.01496598,95680.0,95660.0,0.052318]
[1735238755230,0.07616078,95680.0,95660.0,0.052318]
[1735238755534,0.052312,95670.0,95661.0,0.052317]
[1735238755935,0.07616078,95680.0,95661.0,0.061317]
[1735238756233,0.052313,95669.0,95661.0,0.061317]
[1735238756424,0.052313,95669.0,95661.0,0.052317]
[1735238757835,0.07616078,95680.0,95660.0,0.018]
[1735238758021,0.052308,95678.0,95660.0,0.018]
[1735238758221,0.052313,95669.0,95661.0,0.009]
[1735238758426,0.052314,95668.0,95661.0,0.009]
[1735238758731,0.07616078,95680.0,95661.0,0.009]
[1735238758938,0.07616078,95680.0,95658.0,0.052318]
[1735238759330,0.052314,95666.0,95658.0,0.052318]
[1735238759933,0.052314,95666.0,95659.0,0.0612]
[1735238760534,0.052306,95681.0,95659.0,0.0612]
[1735238760739,0.052311,95673.0,95661.0,0.052317]
[1735238760930,0.34277049,95685.0,95660.0,0.07616078]
[1735238761331,0.052312,95672.0,95663.0,0.052316]
[1735238762435,0.052312,95672.0,95663.0,0.061316]
[1735238762829,0.052312,95672.0,95663.0,0.070316]
[1735238763739,0.01868657,95685.0,95663.0,0.018]
[1735238764040,0.07616078,95700.0,95663.0,0.018]
[1735238764041,0.052305,95683.0,95675.0,0.052309]
[1735238764240,0.052306,95682.0,95676.0,0.1177]
[1735238764442,0.07659869,95699.0,95676.0,0.1177]
[1735238764443,0.052307,95680.0,95676.0,0.1177]
[1735238764632,0.052298,95697.0,95676.0,0.1177]
[1735238764828,0.052305,95684.0,95676.0,0.1177]
[1735238765743,0.052305,95684.0,95676.0,0.179009]
[1735238765927,0.052305,95684.0,95676.0,0.1267]
[1735238766231,0.052305,95684.0,95678.0,0.052307]
[1735238767234,0.02369516,95684.0,95676.0,0.1357]
[1735238767441,0.052308,95677.0,95676.0,0.1357]
[1735238767943,0.052308,95677.0,95676.0,0.009]
[1735238768128,0.052322,95653.0,95645.0,0.052326]
[1735238768334,0.052319,95659.0,95642.0,0.1222]
[1735238768533,0.052323,95651.0,95642.0,0.1222]
[1735238768733,0.052323,95651.0,95642.0,0.174527]
[1735238768933,0.052324,95648.0,95642.0,0.174527]
[1735238769343,0.052314,95667.0,95642.0,0.1222]
[1735238769640,0.052322,95652.0,95643.0,0.052326]
[1735238770142,0.052322,95652.0,95645.0,0.052325]
[1735238770441,0.052322,95652.0,95647.0,0.052324]
[1735238772744,0.052322,95652.0,95648.0,0.052324]
[1735238772934,0.055322,95652.0,95648.0,0.052324]
[1735238773429,0.052314,95667.0,95642.0,0.1222]
[1735238773630,0.052298,95696.0,95657.0,0.07616078]
[1735238773833,0.052305,95684.0,95670.0,0.07616078]
[1735238774034,0.052303,95687.0,95671.0,0.134]
[1735238774339,0.052301,95691.0,95683.0,0.052305]
[1735238774843,0.052301,95691.0,95672.0,0.11]
[1735238775045,0.052301,95691.0,95685.0,0.052303]
[1735238775234,0.0233006,95696.0,95685.0,0.052303]
[1735238775434,0.052299,95694.0,95684.0,0.052304]
[1735238775638,0.001,95691.0,95684.0,0.052304]
[1735238776038,0.0523,95693.0,95685.0,0.052304]
[1735238776235,0.001,95691.0,95686.0,0.052303]
[1735238776537,0.001,95691.0,95685.0,0.009]
[1735238776742,0.052291,95708.0,95699.0,0.052296]
[1735238776942,0.052291,95708.0,95686.0,0.0692]
[1735238776943,0.3433305,95715.0,95700.0,0.0687]
[1735238777143,0.052291,95709.0,95700.0,0.0687]
[1735238777343,0.052291,95709.0,95701.0,0.052295]
[1735238777649,0.052291,95709.0,95701.0,0.119095]
[1735238777950,0.02389458,95715.0,95701.0,0.119095]
[1735238777951,0.02389458,95715.0,95701.0,0.0668]
[1735238778141,0.39087049,95729.0,95701.0,0.0668]
[1735238778948,0.39087049,95729.0,95706.0,0.052292]
[1735238779345,0.052287,95717.0,95708.0,0.052291]
[1735238779545,0.39087049,95729.0,95701.0,0.0758]
[1735238779546,0.07616078,95720.0,95701.0,0.0758]
[1735238779754,0.052286,95719.0,95701.0,0.0848]
[1735238780051,0.05229,95711.0,95701.0,0.0848]
[1735238780357,0.07218101,95729.0,95708.0,0.052291]
[1735238780358,0.052287,95717.0,95708.0,0.052291]
[1735238780653,0.07218101,95729.0,95702.0,0.052294]
[1735238780654,0.052289,95713.0,95702.0,0.052294]
[1735238781040,0.052286,95718.0,95706.0,0.052292]
[1735238781241,0.07218101,95729.0,95706.0,0.009]
[1735238781437,0.052288,95714.0,95706.0,0.009]
[1735238781854,0.052288,95714.0,95702.0,0.061295]
[1735238782159,0.052289,95713.0,95702.0,0.061295]
[1735238782355,0.052289,95713.0,95702.0,0.052295]
[1735238782550,0.052289,95713.0,95706.0,0.009]
[1735238782951,0.07616078,95720.0,95706.0,0.018]
[1735238783751,0.052291,95708.0,95706.0,0.018]
[1735238784056,0.052291,95708.0,95706.0,0.009]
[1735238784748,0.07616078,95720.0,95706.0,0.018]
[1735238784749,0.052289,95714.0,95706.0,0.018]
[1735238784949,0.07616078,95720.0,95706.0,0.018]
[1735238785254,0.052289,95713.0,95706.0,0.01]
[1735238785858,0.052289,95713.0,95706.0,0.018]
[1735238786260,0.052289,95712.0,95706.0,0.009]
[1735238787259,0.07616078,95720.0,95706.0,0.009]
[1735238787558,0.052292,95707.0,95706.0,0.018]
[1735238787750,0.052289,95713.0,95706.0,0.018]
[1735238788058,0.052289,95713.0,95706.0,0.009]
[1735238788258,0.05229,95712.0,95706.0,0.018]
[1735238788458,0.05229,95710.0,95706.0,0.018]
[1735238788655,0.052292,95707.0,95706.0,0.018]
[1735238788860,0.052292,95707.0,95706.0,0.01]
[1735238789247,0.052292,95707.0,95706.0,0.001]
[1735238789453,0.052292,95707.0,95706.0,0.009]
[1735238790161,0.052292,95707.0,95706.0,0.001]
[1735238791055,0.052291,95709.0,95706.0,0.009]
[1735238791249,0.173086,95719.0,95706.0,0.009]
[1735238791250,0.052292,95707.0,95706.0,0.009]
[1735238791652,0.052289,95713.0,95706.0,0.001]
[1735238791962,0.0661,95728.0,95706.0,0.001]
[1735238792166,0.052289,95712.0,95706.0,0.001]
[1735238793158,0.001,95709.0,95706.0,0.01]
[1735238794659,0.05229,95711.0,95706.0,0.018]
[1735238795250,0.05229,95711.0,95706.0,0.01]
[1735238795454,0.05229,95711.0,95706.0,0.001]
[1735238795664,0.02343287,95712.0,95701.0,0.052295]
[1735238795860,0.052285,95720.0,95706.0,0.009]
[1735238796070,0.052285,95720.0,95710.0,0.05229]
[1735238796270,0.052285,95720.0,95711.0,0.05229]
[1735238796651,0.07639702,95720.0,95711.0,0.05229]
[1735238796856,0.02411202,95720.0,95712.0,0.052289]
[1735238797062,0.052283,95724.0,95712.0,0.052289]
[1735238797263,0.0513,95739.0,95712.0,0.052289]
[1735238797565,0.052281,95728.0,95717.0,0.052286]
[1735238797759,0.052281,95727.0,95717.0,0.052286]
[1735238798155,0.07451441,95739.0,95707.0,0.1369]
[1735238798156,0.07616078,95730.0,95707.0,0.1369]
[1735238798359,0.052283,95724.0,95711.0,0.05229]
[1735238798562,0.052283,95724.0,95711.0,0.009]
[1735238798956,0.05228,95730.0,95717.0,0.009]
[1735238799160,0.05228,95730.0,95718.0,0.052286]
[1735238799360,0.07451441,95739.0,95718.0,0.052286]
[1735238799557,0.05228,95729.0,95718.0,0.052286]
[1735238800260,0.07451441,95739.0,95718.0,0.061286]
[1735238800465,0.052279,95730.0,95718.0,0.061286]
[1735238800861,0.02321441,95739.0,95722.0,0.052283]
[1735238801168,0.048,95743.0,95723.0,0.0693]
[1735238801169,0.052277,95734.0,95723.0,0.0693]
[1735238801566,0.052277,95734.0,95723.0,0.121583]
[1735238801765,0.07616078,95750.0,95723.0,0.0693]
[1735238801969,0.052275,95738.0,95726.0,0.052281]
[1735238802155,0.02372027,95750.0,95729.0,0.05228]
[1735238802462,0.07616078,95750.0,95730.0,0.0678]
[1735238803269,0.07616078,95740.0,95729.0,0.009]
[1735238803475,0.052279,95730.0,95729.0,0.009]
[1735238804873,0.052279,95730.0,95729.0,0.018]
[1735238805865,0.052273,95742.0,95730.0,0.009]
[1735238806071,0.052276,95736.0,95730.0,0.009]
[1735238806777,0.052276,95736.0,95729.0,0.018]
[1735238806971,0.052272,95743.0,95729.0,0.018]
[1735238807177,0.052272,95743.0,95730.0,0.07616078]
[1735238807374,0.05227,95747.0,95732.0,0.052278]
[1735238807575,0.05227,95747.0,95733.0,0.0653]
[1735238807972,0.052271,95745.0,95733.0,0.0653]
[1735238808687,0.33403502,95756.0,95733.0,0.0653]
[1735238808977,0.052273,95743.0,95733.0,0.0743]
[1735238809382,0.052273,95743.0,95733.0,0.0833]
[1735238810079,0.31085537,95764.0,95734.0,0.052277]
[1735238810382,0.052273,95742.0,95734.0,0.052277]
[1735238811485,0.052273,95742.0,95734.0,0.061277]
[1735238811787,0.09978674,95760.0,95734.0,0.009]
[1735238811974,0.052275,95738.0,95733.0,0.0743]
[1735238812281,0.052275,95738.0,95734.0,0.018]
[1735238812478,0.052276,95736.0,95734.0,0.018]
[1735238813177,0.052276,95736.0,95734.0,0.009]
[1735238814083,0.052276,95736.0,95733.0,0.0833]
[1735238814272,0.052277,95735.0,95733.0,0.0833]
[1735238814474,0.09978674,95760.0,95733.0,0.0833]
[1735238814677,0.052273,95742.0,95734.0,0.009]
[1735238814883,0.052274,95741.0,95734.0,0.009]
[1735238815079,0.052274,95741.0,95734.0,0.018]
[1735238815281,0.052274,95741.0,95734.0,0.009]
[1735238816786,0.052274,95741.0,95735.0,0.052277]
[1735238817276,0.052274,95741.0,95734.0,0.018]
[1735238817277,0.052274,95741.0,95737.0,0.052275]
[1735238817681,0.05227,95748.0,95734.0,0.018]
[1735238817984,0.05227,95748.0,95742.0,0.052272]
[1735238818180,0.31085537,95764.0,95743.0,0.0686]
[1735238818586,0.052265,95756.0,95743.0,0.0686]
[1735238818787,0.052265,95756.0,95750.0,0.052268]
[1735238818988,0.052262,95762.0,95751.0,0.119468]
[1735238819289,0.052262,95762.0,95754.0,0.052266]
[1735238819692,0.33567802,95764.0,95751.0,0.0672]
[1735238819874,0.31085537,95764.0,95763.0,0.052261]
[1735238820182,0.00056001,95771.0,95767.0,0.052259]
[1735238820486,0.02422063,95771.0,95769.0,0.052258]
[1735238820681,0.052257,95771.0,95768.0,0.0686]
[1735238820887,0.07616078,95780.0,95754.0,0.1339]
[1735238821083,0.052263,95761.0,95754.0,0.1339]
[1735238821479,0.052264,95758.0,95754.0,0.1339]
[1735238821780,0.052265,95756.0,95754.0,0.1339]
[1735238821975,0.052266,95755.0,95754.0,0.1339]
[1735238822180,0.052257,95771.0,95745.0,0.0686]
[1735238822489,0.052257,95771.0,95746.0,0.18567]
[1735238822490,0.052266,95755.0,95746.0,0.18567]
[1735238822680,0.07616078,95760.0,95746.0,0.1334]
[1735238822875,0.052266,95755.0,95754.0,0.009]
[1735238824183,0.052266,95755.0,95754.0,0.018]
[1735238824788,8.476e-05,95758.0,95754.0,0.009]
[1735238824974,0.052266,95755.0,95754.0,0.009]
[1735238825683,0.052266,95755.0,95754.0,0.018]
[1735238826279,0.052266,95755.0,95754.0,0.009]
[1735238826484,0.052266,95755.0,95754.0,0.018]
[1735238828088,0.052266,95755.0,95754.0,0.009]
[1735238828287,0.052266,95755.0,95754.0,0.018]
[1735238828688,0.052266,95755.0,95754.0,0.009]
[1735238828890,0.052266,95755.0,95754.0,0.018]
[1735238830092,8.476e-05,95758.0,95754.0,0.018]
[1735238830479,8.476e-05,95758.0,95757.0,0.052265]
[1735238831494,8.476e-05,95758.0,95754.0,0.018]
[1735238831694,8.476e-05,95758.0,95757.0,0.009]
[1735238832396,8.476e-05,95758.0,95757.0,0.018]
[1735238834097,0.05234876,95758.0,95757.0,0.018]
[1735238834990,0.052271,95746.0,95745.0,0.0686]
[1735238836294,0.052276,95737.0,95715.0,0.052287]
[1735238836595,0.052282,95726.0,95721.0,0.1324]
[1735238837797,0.0201434,95746.0,95745.0,0.009]
[1735238837992,0.052284,95722.0,95721.0,0.1324]
[1735238838693,0.001,95726.0,95721.0,0.1324]
[1735238839199,0.054282,95726.0,95721.0,0.1324]
[1735238839388,0.002,95726.0,95721.0,0.1324]
[1735238839793,0.052284,95722.0,95721.0,0.1324]
[1735238840098,0.054284,95722.0,95721.0,0.1324]
[1735238841593,0.052284,95722.0,95721.0,0.1324]
[1735238841794,0.056284,95722.0,95721.0,0.1324]
[1735238842211,0.060284,95722.0,95721.0,0.1324]
[1735238844397,0.060284,95722.0,95721.0,0.0678]
[1735238844697,0.056284,95722.0,95721.0,0.0678]
[1735238844898,0.060284,95722.0,95721.0,0.0678]
[1735238845807,0.056284,95722.0,95721.0,0.0678]
[1735238846101,0.062284,95722.0,95721.0,0.0678]
[1735238847397,0.006,95722.0,95721.0,0.0678]
[1735238847598,0.011,95722.0,95721.0,0.0688]
[1735238848196,0.01,95722.0,95721.0,0.0688]
[1735238848595,0.006,95722.0,95721.0,0.0688]
[1735238848800,0.01,95722.0,95721.0,0.0688]
[1735238849101,0.011,95722.0,95721.0,0.0688]
[1735238849303,0.063284,95722.0,95721.0,0.0688]
[1735238850812,0.059284,95722.0,95721.0,0.0678]
[1735238851305,0.056284,95722.0,95721.0,0.0678]
[1735238851607,0.009,95722.0,95721.0,0.0678]
[1735238851994,0.003,95722.0,95721.0,0.0678]
[1735238852198,0.006,95722.0,95721.0,0.0678]
[1735238852508,0.058284,95722.0,95721.0,0.0678]
[1735238852811,0.006,95722.0,95714.0,0.0668]
[1735238852999,0.052288,95715.0,95714.0,0.0668]
[1735238853506,0.006,95722.0,95694.0,0.00156751]
[1735238853708,0.07616078,95704.0,95684.0,0.0684]
[1735238853899,0.07616078,95691.0,95682.0,0.0707]
[1735238854208,0.052308,95678.0,95671.0,0.1365]
[1735238854508,0.052307,95679.0,95672.0,0.0707]
[1735238854896,0.07616078,95691.0,95684.0,0.004]
[1735238855100,0.052304,95685.0,95684.0,0.004]
[1735238855602,0.052311,95672.0,95671.0,0.0771]
[1735238856007,0.052311,95672.0,95671.0,0.009]
[1735238856908,0.001,95678.0,95671.0,0.009]
[1735238857101,0.052309,95677.0,95671.0,0.008]
[1735238857409,0.01925962,95685.0,95657.0,0.0666]
[1735238857410,0.052305,95683.0,95672.0,0.052311]
[1735238857708,0.052305,95683.0,95667.0,0.07616078]
[1735238857907,0.001,95672.0,95671.0,0.001]
[1735238858605,0.001,95672.0,95657.0,0.0666]
[1735238858799,0.001,95672.0,95660.0,0.052317]
[1735238859000,0.001,95672.0,95663.0,0.052316]
[1735238859409,0.001,95672.0,95671.0,0.001]
[1735238860206,0.052311,95673.0,95671.0,0.001]
[1735238860610,0.01895692,95673.0,95671.0,0.001]
[1735238860911,0.07616078,95690.0,95671.0,0.001]
[1735238861110,0.002,95672.0,95671.0,0.001]
[1735238861501,0.002,95672.0,95663.0,0.052316]
[1735238861701,0.002,95672.0,95664.0,0.00456781]
[1735238861902,0.052311,95672.0,95664.0,0.00456781]
[1735238862411,0.052311,95672.0,95664.0,0.00156781]
[1735238862412,0.055311,95672.0,95664.0,0.00156781]
[1735238863507,0.052314,95667.0,95664.0,0.00156781]
[1735238863704,0.004,95672.0,95664.0,0.00156781]
[1735238863904,0.002,95672.0,95664.0,0.00156781]
[1735238864308,0.003,95672.0,95664.0,0.00156781]
[1735238864507,0.004,95672.0,95664.0,0.00156781]
[1735238864902,0.004,95672.0,95664.0,0.05388281]
[1735238865307,0.004,95672.0,95665.0,0.052315]
[1735238865507,0.004,95672.0,95664.0,0.00156781]
[1735238865707,0.003,95672.0,95671.0,0.052312]
[1735238866112,0.003,95672.0,95664.0,0.00156781]
[1735238866319,0.003,95672.0,95669.0,0.052313]
[1735238866507,0.003,95672.0,95664.0,0.05388281]
[1735238866710,0.001,95672.0,95664.0,0.05388281]
[1735238867515,0.003,95672.0,95664.0,0.05388281]
[1735238868013,0.002,95672.0,95664.0,0.05388281]
[1735238868212,0.052311,95673.0,95664.0,0.05388281]
[1735238868911,0.052311,95673.0,95664.0,0.00156781]
[1735238869106,0.01868291,95675.0,95665.0,0.052315]
[1735238869302,0.052311,95672.0,95665.0,0.052315]
[1735238869513,0.052312,95671.0,95665.0,0.052315]
[1735238869713,0.09516996,95690.0,95664.0,0.00156781]
[1735238869911,0.052314,95667.0,95664.0,0.00156781]
[1735238870319,0.052314,95667.0,95664.0,0.05388281]
[1735238871217,0.052314,95667.0,95664.0,0.00156781]
[1735238871410,0.052314,95667.0,95665.0,0.052315]
[1735238871914,0.053314,95667.0,95665.0,0.052315]
[1735238873108,0.054314,95667.0,95665.0,0.052315]
[1735238873710,0.055314,95667.0,95665.0,0.052315]
[1735238874107,0.053314,95667.0,95665.0,0.052315]
[1735238874707,0.054314,95667.0,95664.0,0.00156781]
[1735238874911,0.054314,95667.0,95666.0,0.052314]
[1735238877010,0.052314,95667.0,95666.0,0.052314]
[1735238877212,0.053314,95667.0,95666.0,0.052314]
[1735238877713,0.054314,95667.0,95666.0,0.052314]
[1735238877918,0.053314,95667.0,95666.0,0.052314]
[1735238878220,0.052304,95686.0,95666.0,0.001]
[1735238878520,0.07616078,95730.0,95670.0,0.07616078]
[1735238878827,0.052302,95688.0,95685.0,0.052303]
[1735238879014,0.0523,95694.0,95686.0,0.191503]
[1735238879207,0.052293,95706.0,95686.0,0.1392]
[1735238879412,0.07616078,95700.0,95686.0,0.1392]
[1735238879612,0.0523,95692.0,95686.0,0.1392]
[1735238879809,0.052301,95691.0,95686.0,0.1392]
[1735238880016,0.20461756,95700.0,95671.0,0.067]
[1735238880208,0.052309,95677.0,95672.0,0.0687]
[1735238880917,0.07616078,95681.0,95672.0,0.0687]
[1735238881425,0.052309,95676.0,95672.0,0.0687]
[1735238881811,0.052309,95676.0,95672.0,0.0777]
[1735238882417,0.05231,95673.0,95672.0,0.009]
[1735238883216,0.05231,95673.0,95672.0,0.013]
[1735238883419,0.05231,95673.0,95672.0,0.00648398]
[1735238883617,0.05231,95673.0,95672.0,0.009]
[1735238884320,0.06631,95673.0,95672.0,0.001]
[1735238896231,0.014,95673.0,95672.0,0.001]
[1735238896422,0.01867705,95681.0,95672.0,0.001]
[1735238896626,0.31149537,95687.0,95676.0,0.052308]
[1735238896831,0.31149537,95687.0,95672.0,0.001]
[1735238896832,0.052301,95691.0,95677.0,0.0696]
[1735238897031,0.31085537,95705.0,95685.0,0.052303]
[1735238897238,0.052299,95695.0,95685.0,0.052303]
[1735238897736,0.052299,95695.0,95686.0,0.052303]
[1735238897932,0.001,95687.0,95686.0,0.052303]
[1735238898432,0.052299,95694.0,95686.0,0.052303]
[1735238899428,0.001,95687.0,95686.0,0.052303]
[1735238900438,0.001,95687.0,95686.0,0.057303]
[1735238901427,0.001,95687.0,95686.0,0.061303]
[1735238901633,0.001,95687.0,95686.0,0.009]
[1735238902133,0.001,95687.0,95686.0,0.061303]
[1735238902543,0.002,95687.0,95686.0,0.065303]
[1735238902840,0.31141538,95710.0,95693.0,0.0523]
[1735238903042,0.052293,95706.0,95699.0,0.052296]
[1735238903246,0.31141538,95710.0,95700.0,0.0704]
[1735238903439,0.32645979,95710.0,95706.0,0.052292]
[1735238904140,0.32745979,95710.0,95706.0,0.052292]
[1735238904541,0.01660442,95710.0,95706.0,0.052292]
[1735238904844,0.01660442,95710.0,95706.0,0.059292]
[1735238905233,0.01760442,95710.0,95706.0,0.059292]
[1735238905433,0.01760442,95710.0,95706.0,0.007]
[1735238905945,0.01760442,95710.0,95706.0,0.012]
[1735238906145,0.01760442,95710.0,95707.0,0.0663]
[1735238906446,0.06989442,95710.0,95707.0,0.0663]
[1735238906743,0.01760442,95710.0,95707.0,0.0663]
[1735238906947,0.01760442,95710.0,95707.0,0.118591]
[1735238907938,0.01760442,95710.0,95707.0,0.125591]
[1735238908333,0.01660442,95710.0,95707.0,0.125591]
[1735238908535,0.01760442,95710.0,95707.0,0.130591]
[1735238909030,0.01760442,95710.0,95708.0,0.052291]
[1735238910237,0.01760442,95710.0,95708.0,0.057291]
[1735238910840,0.01660442,95710.0,95708.0,0.057291]
[1735238911043,0.01760442,95710.0,95708.0,0.063291]
[1735238914248,0.01760442,95710.0,95708.0,0.011]
[1735238914542,0.31141538,95738.0,95709.0,0.052291]
[1735238914737,0.052281,95728.0,95719.0,0.052285]
[1735238914935,0.052281,95728.0,95720.0,0.180785]
[1735238915148,0.052281,95728.0,95721.0,0.052284]
[1735238915945,0.27970887,95732.0,95720.0,0.1285]
[1735238916141,0.07616078,95730.0,95693.0,0.0162581]
[1735238916342,0.052286,95719.0,95701.0,0.138]
[1735238916549,0.052295,95702.0,95701.0,0.0684]
[1735238916945,0.07616078,95710.0,95686.0,0.052303]
[1735238917149,0.052296,95700.0,95687.0,0.0684]
[1735238917447,0.0599,95709.0,95687.0,0.0684]
[1735238917648,0.0523,95693.0,95687.0,0.0684]
[1735238917845,0.052297,95698.0,95687.0,0.0684]
[1735238918051,0.052295,95702.0,95694.0,0.052299]
[1735238918345,0.052295,95702.0,95688.0,0.07616078]
[1735238918540,0.052277,95735.0,95688.0,0.07616078]
[1735238918740,0.052289,95712.0,95700.0,0.07616078]
[1735238918941,0.052289,95712.0,95701.0,0.184995]
[1735238919144,0.052289,95712.0,95704.0,0.052293]
[1735238920044,0.053289,95712.0,95704.0,0.052293]
[1735238921448,0.054289,95712.0,95704.0,0.061293]
[1735238921946,0.002,95712.0,95711.0,0.05229]
[1735238922547,0.01806333,95712.0,95711.0,0.05229]
[1735238922850,0.35586965,95740.0,95711.0,0.05229]
[1735238922851,0.052279,95731.0,95711.0,0.05229]
[1735238923052,0.052279,95731.0,95723.0,0.052283]
[1735238923255,0.052279,95731.0,95724.0,0.0653]
[1735238923450,0.65426586,95738.0,95724.0,0.0653]
[1735238923655,0.052276,95737.0,95724.0,0.0653]
[1735238923951,0.052279,95730.0,95724.0,0.0653]
[1735238924953,0.052279,95730.0,95724.0,0.0743]
[1735238925343,0.053279,95730.0,95724.0,0.0743]
[1735238925542,0.001,95730.0,95724.0,0.0743]
[1735238925746,0.001,95730.0,95727.0,0.052281]
[1735238926146,0.001,95730.0,95728.0,0.05228]
[1735238926349,0.001,95730.0,95729.0,0.05228]
[1735238926651,0.002,95730.0,95729.0,0.05228]
[1735238927251,0.27970887,95748.0,95740.0,0.052273]
[1735238927448,0.27970887,95748.0,95743.0,0.052272]
[1735238927650,0.27970887,95748.0,95744.0,0.0679]
[1735238928454,0.27970887,95748.0,95746.0,0.052271]
[1735238928654,0.31085537,95753.0,95746.0,0.052271]
[1735238929055,0.001,95748.0,95746.0,0.052271]